{"text_format":"1","workbook":"xlsx","n_sheets":5,"sheets":["SOLICITAÇÃO","MEMORIAL DESCRITIVO","PLANO DE ENSAIO","REPASSE ","RÓTULOS E CÓDIGO DE BARRAS"],"not_rendered":{"charts":0,"images":2,"macros":1,"external_links":1,"defined_names":21,"comments":0,"pivot_tables":0},"unopened":[],"bounds":{"document_bytes":16777216,"sheet_cells":100000,"rows_first":2000,"rows_last":500,"rows_between":2000,"halvings":0,"cell_chars":16384,"cell_head_chars":4096},"cells_cut":0,"cells_raw":0,"read":"whole","date_system":"1900"}

{"sheet":"SOLICITAÇÃO","index":0,"n_rows":79,"n_cols":4,"rows_kept":79,"cut":false,"hidden":false,"merged":[[66,2,66,4],[67,2,67,4],[61,2,61,4],[62,2,62,4],[63,2,63,4],[64,2,64,4],[65,2,65,4],[56,2,56,4],[57,2,57,4],[58,2,58,4],[59,2,59,4],[60,2,60,4],[27,2,27,4],[28,2,28,4],[29,2,29,4],[37,2,37,4],[36,3,36,4],[71,2,71,4],[70,3,70,4],[83,3,83,4],[80,3,80,4],[81,3,81,4],[82,3,82,4],[1,1,1,4],[6,1,6,4],[22,1,22,4],[68,1,68,4],[8,2,8,4],[17,2,17,4],[16,2,16,4],[15,2,15,4],[14,2,14,4],[13,2,13,4],[12,2,12,4],[11,2,11,4],[9,2,9,4],[19,2,19,4],[34,2,34,4],[35,2,35,4],[10,2,10,4],[84,3,84,4],[30,2,30,4],[31,2,31,4],[32,2,32,4],[76,1,76,4],[78,3,78,4],[79,3,79,4],[74,2,74,4],[33,2,33,4],[20,2,20,4],[18,2,18,4],[24,2,24,4],[25,2,25,4],[26,2,26,4],[72,2,72,4],[39,1,39,4],[41,2,41,4],[42,2,42,4],[43,2,43,4],[44,2,44,4],[50,2,50,4],[51,2,51,4],[52,2,52,4],[54,1,54,4],[45,2,45,4],[46,2,46,4],[47,2,47,4],[48,2,48,4],[49,2,49,4]]}
[]
[null,"                                \n                             ANÁLISE DE VIABILIDADE\n                                     EMBALAGENS DESTINADAS AO ENVASILHAMENTO DE ÁLCOOL ETÍLICO"]
[]
[null,"SOLICITAÇÃO:","-"]
[null,"MODELO DE CERTIFICAÇÃO:","-"]
[]
[null,"DADOS DA EMPRESA SOLICITANTE"]
[]
[null,"RAZÃO SOCIAL:","-"]
[null,"NOME FANTASIA:","-"]
[null,"CNPJ:","-"]
[null,"ENDEREÇO:","-"]
[null,"BAIRRO:","-"]
[null,"CEP:","-"]
[null,"CIDADE:","-"]
[null,"ESTADO:","-"]
[null,"E-MAIL:","-"]
[null,"NOME DO CONTATO:","-"]
[null,"TELEFONE: (   )","-"]
[null,"DATA DA SOLICITAÇÃO:","-"]
[null,null,"______________________________________________________________________\nAssinatura (obrigatório)"]
[]
[null,"DADOS DA EMPRESA ENVASILHADORA"]
[]
[null,"RAZÃO SOCIAL:","-"]
[null,"NOME FANTASIA:","-"]
[null,"CNPJ:","-"]
[null,"ENDEREÇO:","-"]
[null,"BAIRRO:","-"]
[null,"CEP:","-"]
[null,"CIDADE:","-"]
[null,"ESTADO:","-"]
[null,"PAÍS:","-"]
[null,"E-MAIL - FÁBRICA:","-"]
[null,"NOME DO CONTATO FÁBRICA:","-"]
[null,"TELEFONE (DDD) XXXXX-XXXX:","-"]
[null,"POSSUI CERTIFICAÇÃO ISO 9001? (vigente)","-",{"$f":"IF(C37=\"SIM\",\"Enviar certificado com validade vigente via e-mail\",\"\")","v":""}]
[null,{"$f":"IF(C37=\"sim\",\"DESCREVA O ESCOPO DE CERTIFICAÇÃO\",\"\")","v":""},"-"]
[]
[null,"DADOS DO FABRICANTE DA EMBALAGEM"]
[]
[null,"RAZÃO SOCIAL:","-"]
[null,"NOME FANTASIA:","-"]
[null,"CNPJ:","-"]
[null,"ENDEREÇO:","-"]
[null,"BAIRRO:","-"]
[null,"CEP:","-"]
[null,"CIDADE:","-"]
[null,"ESTADO:","-"]
[null,"PAÍS:","-"]
[null,"E-MAIL - FÁBRICA:","-"]
[null,"NOME DO CONTATO FÁBRICA:","-"]
[null,"TELEFONE (DDD) XXXXX-XXXX:","-"]
[]
[null,"DADOS DO FABRICANTE DA TAMPA"]
[]
[null,"RAZÃO SOCIAL:","-"]
[null,"NOME FANTASIA:","-"]
[null,"CNPJ:","-"]
[null,"ENDEREÇO:","-"]
[null,"BAIRRO:","-"]
[null,"CEP:","-"]
[null,"CIDADE:","-"]
[null,"ESTADO:","-"]
[null,"PAÍS:","-"]
[null,"E-MAIL - FÁBRICA:","-"]
[null,"NOME DO CONTATO FÁBRICA:","-"]
[null,"TELEFONE (DDD) XXXXX-XXXX:","-"]
[null,"IDENTIFICAÇÃO DOS PRODUTOS"]
[]
[null,"POSSUI LICENÇA DE TERCEIROS?\n(USO DE MARCA): ","-",{"$f":"IF(C71=\"SIM\",\"Favor preencher as duas linhas abaixo\",\"\")","v":""}]
[null,{"$f":"IF(C71=\"SIM\",\"PRODUTOS LICENCIADOS:\",\"\")","v":""},"-"]
[null,{"$f":"IF(C71=\"SIM\",\"N° DA LICENÇA P/ USO DE MARCAS:\",\"\")","v":""},"-"]
[null,"EXISTE PROCESSO TERCEIRIZADO:","-"]
[null,{"$f":"IF(C74=\"SIM\",\"QUAL?\",\"\")","v":""},"-"]
[]
[null,"RELAÇÃO DE COMPONENTES\n(De acordo com o requisito 6.2.1.2 - e) da Portaria Inmetro n° 200/2021)\nTraduzidos para o Português, quando em idioma distinto do Inglês ou Espanhol;\n\nComponentes podem ser:\nTampas, rótulos e todos os demais componentes utilizados para a construção do modelo que impactem a conformidade do produto, que sejam fornecidos por empresa terceira ou produzidos pela própria empresa fabricante do produto final."]
[]
[null,"COMPONENTE","MATERIAL UTILIZADO","FORNECEDOR(ES)"]

{"sheet":"MEMORIAL DESCRITIVO","index":1,"n_rows":48,"n_cols":17,"rows_kept":48,"cut":false,"hidden":false,"merged":[[37,1,38,5],[35,1,36,5],[43,7,48,8],[43,9,48,9],[43,10,48,11],[43,12,48,12],[43,13,48,14],[47,1,48,5],[45,1,46,5],[43,1,44,5],[11,15,11,25],[21,10,21,13],[14,10,14,13],[17,10,17,13],[18,10,18,13],[19,10,19,13],[20,10,20,13],[21,5,21,8],[5,4,5,5],[4,4,4,5],[18,5,18,8],[19,5,19,8],[15,5,15,8],[14,5,14,8],[16,5,16,8],[4,8,4,11],[5,8,5,11],[14,1,14,2],[17,5,17,8],[20,5,20,8],[15,1,15,2],[15,10,15,13],[16,1,16,2],[16,10,16,13],[1,1,1,14],[7,1,7,14],[12,1,12,14],[4,1,4,2],[28,1,28,14],[5,1,5,2],[3,1,3,2],[17,1,17,2],[18,1,18,2],[19,1,19,2],[20,3,20,4],[21,3,21,4],[20,1,20,2],[21,1,21,2],[3,4,3,5],[3,8,3,11],[30,1,30,14],[24,1,24,11],[37,7,42,8],[37,9,42,9],[37,10,42,11],[37,12,42,12],[37,13,42,14],[24,13,26,14],[25,2,25,5],[26,2,26,5],[25,8,25,11],[26,8,26,11],[31,1,32,5],[33,1,34,5],[41,1,42,5],[39,1,40,5],[31,16,36,17],[31,7,36,8],[31,10,36,11],[31,9,36,9],[31,12,36,12],[31,13,36,14]]}
[]
[null,"IDENTIFICAÇÃO DO MODELO OBJETO DA CERTIFICAÇÃO"]
[]
[null,"MODELO DE EMBALAGEM:",null,null,"-",null,null,null,"Exemplo: 500g, 500mL, 1L, 1Kg, 5L, 5Kg, 200mL, 200g, etc..."]
[null,"DESIGN DA EMBALAGEM:",null,null,"-",null,null,null,"Exemplo: Cilindrica, retangular, etc..."]
[null,"TIPO DE TAMPA DA EMBALAGEM:",null,null,"-",null,null,null,"Exemplo: Flip top, pump, rosca, etc..."]
[]
[null,"RÓTULOS E CÓDIGO DE BARRAS"]
[]
[]
[]
[]
[null,"CARACTERÍSTICAS CONSTRUTIVAS - COMPOSIÇÃO"]
[]
[null,"MATERIAL DA EMBALAGEM:",null,null,null,"-",null,null,null,null,"Exemplo: PEAD, PET, etc..."]
[null,"DESCRIÇÃO DO PRODUTO",null,null,null,"-",null,null,null,null,"Exemplo: Gel ou líquido"]
[null,"VOLUMETRIA:",null,null,null,"-",null,null,null,null,"Valor informado no painel principal\nem: g, ml, L, kg"]
[null,"CAPACIDADE: ",null,null,null,"-",null,null,null,null,"Valor da capacidade total da embalagem"]
[null,"DENSIDADE g/ml ",null,null,null,"-",null,null,null,null,"Aplicável quando em forma de gel"]
[null,"GRADUAÇÃO: °INPM",null,null,null,"-",null,null,null,null,"Valor informado no painel principal"]
[null,"PRODUTO COM DESNATURANTE: ",null,null,null,"-",null,null,null,null,"Se aplicável, informar o desnaturante"]
[null,"DESTINAÇÃO DO PRODUTO",null,null,null,"-",null,null,null,null,"Exemplo: Doméstico, hospitalar e institucional"]
[]
[]
[null,"ACESSÓRIOS:",null,null,null,null,null,null,null,null,null,null,null,"SE NÃO APLICÁVEL, FAVOR ESCREVER NO 1º ITEM: N/A"]
[null,1,"-",null,null,null,null,3]
[null,2,null,null,null,null,null,4]
[]
[null,"Fotos do produto"]
[]
[null,"Nota: As fotos devem estar em resolução mínima de 800x600 dpi"]
[null,"1 - VISTA FRONTAL E DETALHE DO PAINEL PRINCIPAL ",null,null,null,null,null,"1\n\n\n\n\n\n\n\n\n\n\n\n\nOBRIGATÓRIO",null,null,"2\n\n\n\n\n\n\n\n\n\n\n\n\nOBRIGATÓRIO",null,null,"3\n\n\n\n\n\n\n\n\n\n\n\n\nOBRIGATÓRIO",null,null,"Informar a localização que está no carrinho as marcações obrigatórias"]
[]
[null,"2 - VISTA TRASEIRA E DETALHE DO PAINEL SECUNDÁRIO"]
[]
[null,"3 - VISTA DO FUNDO  E DETALHE DO PAINEL TERCIÁRIO "]
[]
[null,"4 -  FOTO DA TAMPA",null,null,null,null,null,"4\n\n\n\n\n\n\n\n\n\n\n\n\nOBRIGATÓRIO",null,null,"5\n\n\n\n\n\n\n\n\n\n\n\n\nOBRIGATÓRIO",null,null,"6\n\n\n\n\n\n\n\n\n\n\n\n\nOBRIGATÓRIO"]
[]
[null,"5 - FOTO DA EMBALAGEM"]
[]
[null,"6 - SELO DE IDENTIFICAÇÃO DA CONFORMIDADE"]
[]
[null,"7 - EMBALAGEM PRIMÁRIA:\n(se aplicável)",null,null,null,null,null,7,null,null,8,null,null,9]
[]
[null,"8 - EMBALAGEM SECUNDÁRIA:\n(se aplicável)"]
[]
[null,"9 - EMBALAGEM TERCIÁRIA:\n(se aplicável)"]

{"sheet":"PLANO DE ENSAIO","index":2,"n_rows":55,"n_cols":8,"rows_kept":55,"cut":false,"hidden":true,"merged":[[38,6,38,9],[39,6,39,9],[40,6,40,9],[41,6,41,9],[42,6,42,9],[43,6,43,9],[31,6,31,9],[33,6,33,9],[34,6,34,9],[35,6,35,9],[36,6,36,9],[37,6,37,9],[29,1,29,4],[30,1,30,4],[31,1,31,4],[23,6,23,9],[24,6,24,9],[25,6,25,9],[26,6,26,9],[27,6,27,9],[29,6,29,9],[30,6,30,9],[23,1,23,4],[24,1,24,4],[25,1,25,4],[26,1,26,4],[27,1,27,4],[28,1,28,4],[22,1,22,4],[18,6,18,9],[19,6,19,9],[20,6,20,9],[21,6,21,9],[22,6,22,9],[16,1,16,9],[17,1,17,4],[32,1,32,9],[17,6,17,9],[18,1,18,4],[19,1,19,4],[20,1,20,4],[21,1,21,4],[7,1,7,2],[8,1,8,2],[9,1,9,2],[7,3,7,9],[8,3,8,9],[9,3,9,9],[44,6,44,9],[33,1,44,1],[33,2,44,4],[54,1,54,2],[54,4,54,6],[54,7,54,9],[52,1,52,2],[52,4,52,6],[52,7,52,9],[53,1,53,2],[53,4,53,6],[53,7,53,9],[50,1,50,2],[50,4,50,6],[50,7,50,9],[51,1,51,2],[51,4,51,6],[51,7,51,9],[48,1,48,2],[48,4,48,6],[48,7,48,9],[49,1,49,2],[49,4,49,6],[49,7,49,9],[28,6,28,9],[45,1,45,9],[46,1,46,2],[46,4,46,6],[46,7,46,9],[47,1,47,2],[47,4,47,6],[47,7,47,9],[15,1,15,9],[13,1,13,2],[13,3,13,4],[13,6,13,9],[14,1,14,2],[14,3,14,4],[14,6,14,9],[10,1,10,2],[10,3,10,9],[11,1,11,2],[11,3,11,4],[11,6,11,9],[12,1,12,2],[12,3,12,4],[12,6,12,9],[5,1,5,2],[5,3,5,5],[5,7,5,9],[6,1,6,2],[6,3,6,9],[1,6,1,9],[2,7,2,9],[3,1,3,9],[4,1,4,2],[4,3,4,9],[1,2,2,5],[1,1,2,1]]}
[]
[null,null,"PLANO DE ENSAIOS PARA EMBALAGENS \nDESTINADAS AO ENVASILHAMENTO DE ÁLCOOL ETÍLICO",null,null,null,"FOR.19.2"]
[null,null,null,null,null,null,"REV.00","2025-09-18"]
[null,"IDENTIFICAÇÃO DO SOLICITANTE"]
[null,"Razão Social: (Solicitante)",null,{"$f":"SOLICITAÇÃO!C9","v":"-"}]
[null,"Endereço: (Solicitante)",null,{"$f":"CONCATENATE(SOLICITAÇÃO!C12,\" - \",SOLICITAÇÃO!C13,\" - \",SOLICITAÇÃO!C15,\" - \",SOLICITAÇÃO!C16)","v":"- - - - - - -"},null,null,"CEP:",{"$f":"SOLICITAÇÃO!C14","v":"-"}]
[null,"CNPJ: (Solicitante)",null,{"$f":"SOLICITAÇÃO!C11","v":"-"}]
[null,"Empresa Envasilhadora:",null,{"$f":"SOLICITAÇÃO!C25","v":"-"}]
[null,"Fabricante da embalagem:",null,{"$f":"SOLICITAÇÃO!C42","v":"-"}]
[null,"Fabricante da tampa:",null,{"$f":"SOLICITAÇÃO!C57","v":"-"}]
[null,"Portaria:",null,"Portaria nº 460, de 18 de novembro de 2021 - Aprova o Regulamento Técnico da Qualidade e os\nRequisitos de Avaliação da Conformidade para Embalagens Destinadas ao Envasilhamento de Álcool Etílico – Consolidado.\n\nPortaria Inmetro nº 257, de 08 de maio de 2025 - Altera a Portaria Inmetro nº 460, de 18 de novembro de 2021"]
[null,"Rastreabilidade da amostra:",null,null,null,"Quantidade de amostras:"]
[null,"Modelo de certificação:",null,{"$f":"SOLICITAÇÃO!C5","v":"-"},null,"Tipo de amostra:","ESCOLHER UM ITEM."]
[null,"Tipo Amostragem:",null,"Escolher um item.",null,"Processo: (Evento)"]
[null,"Técnico responsável:",null,null,null,"Data:"]
[null,"IDENTIFICAÇÃO DA AMOSTRA"]
[null,"Identificação do modelo "]
[null,"Rótulo(s)",null,null,null,"Marca","Código de barras:"]
[null,{"$f":"'RÓTULOS E CÓDIGO DE BARRAS'!C3","v":"-"},null,null,null,{"$f":"'RÓTULOS E CÓDIGO DE BARRAS'!D3","v":"-"},{"$f":"'RÓTULOS E CÓDIGO DE BARRAS'!E3","v":"-"}]
[null,{"$f":"'RÓTULOS E CÓDIGO DE BARRAS'!C4","v":"-"},null,null,null,{"$f":"'RÓTULOS E CÓDIGO DE BARRAS'!D4","v":"-"},{"$f":"'RÓTULOS E CÓDIGO DE BARRAS'!E4","v":"-"}]
[null,{"$f":"'RÓTULOS E CÓDIGO DE BARRAS'!C5","v":"-"},null,null,null,{"$f":"'RÓTULOS E CÓDIGO DE BARRAS'!D5","v":"-"},{"$f":"'RÓTULOS E CÓDIGO DE BARRAS'!E5","v":"-"}]
[null,{"$f":"'RÓTULOS E CÓDIGO DE BARRAS'!C6","v":"-"},null,null,null,{"$f":"'RÓTULOS E CÓDIGO DE BARRAS'!D6","v":"-"},{"$f":"'RÓTULOS E CÓDIGO DE BARRAS'!E6","v":"-"}]
[null,{"$f":"'RÓTULOS E CÓDIGO DE BARRAS'!C7","v":"-"},null,null,null,{"$f":"'RÓTULOS E CÓDIGO DE BARRAS'!D7","v":"-"},{"$f":"'RÓTULOS E CÓDIGO DE BARRAS'!E7","v":"-"}]
[null,{"$f":"'RÓTULOS E CÓDIGO DE BARRAS'!C8","v":"-"},null,null,null,{"$f":"'RÓTULOS E CÓDIGO DE BARRAS'!D8","v":"-"},{"$f":"'RÓTULOS E CÓDIGO DE BARRAS'!E8","v":"-"}]
[null,{"$f":"'RÓTULOS E CÓDIGO DE BARRAS'!C9","v":"-"},null,null,null,{"$f":"'RÓTULOS E CÓDIGO DE BARRAS'!D9","v":"-"},{"$f":"'RÓTULOS E CÓDIGO DE BARRAS'!E9","v":"-"}]
[null,{"$f":"'RÓTULOS E CÓDIGO DE BARRAS'!C10","v":"-"},null,null,null,{"$f":"'RÓTULOS E CÓDIGO DE BARRAS'!D10","v":"-"},{"$f":"'RÓTULOS E CÓDIGO DE BARRAS'!E10","v":"-"}]
[null,{"$f":"'RÓTULOS E CÓDIGO DE BARRAS'!C11","v":"-"},null,null,null,{"$f":"'RÓTULOS E CÓDIGO DE BARRAS'!D11","v":"-"},{"$f":"'RÓTULOS E CÓDIGO DE BARRAS'!E11","v":"-"}]
[null,{"$f":"'RÓTULOS E CÓDIGO DE BARRAS'!C12","v":"-"},null,null,null,{"$f":"'RÓTULOS E CÓDIGO DE BARRAS'!D12","v":"-"},{"$f":"'RÓTULOS E CÓDIGO DE BARRAS'!E12","v":"-"}]
[null,{"$f":"'RÓTULOS E CÓDIGO DE BARRAS'!C13","v":"-"},null,null,null,{"$f":"'RÓTULOS E CÓDIGO DE BARRAS'!D13","v":"-"},{"$f":"'RÓTULOS E CÓDIGO DE BARRAS'!E13","v":"-"}]
[null,{"$f":"'RÓTULOS E CÓDIGO DE BARRAS'!C14","v":"-"},null,null,null,{"$f":"'RÓTULOS E CÓDIGO DE BARRAS'!D14","v":"-"},{"$f":"'RÓTULOS E CÓDIGO DE BARRAS'!E14","v":"-"}]
[null,{"$f":"'RÓTULOS E CÓDIGO DE BARRAS'!C15","v":"-"},null,null,null,{"$f":"'RÓTULOS E CÓDIGO DE BARRAS'!D15","v":"-"},{"$f":"'RÓTULOS E CÓDIGO DE BARRAS'!E15","v":"-"}]
[null,{"$f":"'RÓTULOS E CÓDIGO DE BARRAS'!C16","v":"-"},null,null,null,{"$f":"'RÓTULOS E CÓDIGO DE BARRAS'!D16","v":"-"},{"$f":"'RÓTULOS E CÓDIGO DE BARRAS'!E16","v":"-"}]
[null,"Características construtivas"]
[null,"FOTO DO PRODUTO",null,null,null,"MODELO DE EMBALAGEM:",{"$f":"'MEMORIAL DESCRITIVO'!E4","v":"-"}]
[null,null,null,null,null,"DESIGN DA EMBALAGEM:",{"$f":"'MEMORIAL DESCRITIVO'!E5","v":"-"}]
[null,null,null,null,null,"TIPO DE TAMPA DA EMBALAGEM:",{"$f":"'MEMORIAL DESCRITIVO'!E6","v":"-"}]
[null,null,null,null,null,"MATERIAL DA EMBALAGEM:",{"$f":"'MEMORIAL DESCRITIVO'!F15","v":"-"}]
[null,null,null,null,null,"DESCRIÇÃO DO PRODUTO",{"$f":"'MEMORIAL DESCRITIVO'!F16","v":"-"}]
[null,null,null,null,null,"VOLUMETRIA:",{"$f":"'MEMORIAL DESCRITIVO'!F17","v":"-"}]
[null,null,null,null,null,"CAPACIDADE: ",{"$f":"'MEMORIAL DESCRITIVO'!F18","v":"-"}]
[null,null,null,null,null,"DENSIDADE g/ml ",{"$f":"'MEMORIAL DESCRITIVO'!F19","v":"-"}]
[null,null,null,null,null,"GRADUAÇÃO: °INPM",{"$f":"'MEMORIAL DESCRITIVO'!F20","v":"-"}]
[null,null,null,null,null,"PRODUTO COM DESNATURANTE: ",{"$f":"'MEMORIAL DESCRITIVO'!F21","v":"-"}]
[null,null,null,null,null,"DESTINAÇÃO DO PRODUTO",{"$f":"'MEMORIAL DESCRITIVO'!F22","v":"-"}]
[null,null,null,null,null,"ACESSÓRIOS:",{"$f":"_xlfn.TEXTJOIN(\" / \", TRUE,\n    IF('MEMORIAL DESCRITIVO'!C26<>\"\",'MEMORIAL DESCRITIVO'!C26,\"\"),\n    IF('MEMORIAL DESCRITIVO'!C27<>\"\",'MEMORIAL DESCRITIVO'!C27,\"\"),\n    IF('MEMORIAL DESCRITIVO'!I26<>\"\",'MEMORIAL DESCRITIVO'!I26,\"\"),\n    IF('MEMORIAL DESCRITIVO'!I27<>\"\",'MEMORIAL DESCRITIVO'!I27,\"\")\n)","v":"-"}]
[null,"Tabela 1: Ensaios e itens de verificação a serem realizados em embalagens"]
[null,"Requisito do RTQ",null,"Ensaio","Metodologia",null,null,"Execução?"]
[null,"5.1a e Item 6",null,"Rotulagem","Item 2.1.1 do Anexo A e Item 6 da Portaria 460:2021",null,null,"Escolher um item."]
[null,"5.1b",null,"Estabilidade","Item 2.2 do Anexo A da Portaria 460:2021",null,null,"Escolher um item."]
[null,"5.1c",null,"Queda Livre","Item 2.3 do Anexo A da Portaria 460:2021",null,null,"Escolher um item."]
[null,"5.1d",null,"Rigidez","Item 2.6 do Anexo A da Portaria 460:2021",null,null,"Escolher um item."]
[null,"5.1e",null,"Capacidade volumétrica","Item 2.7 do Anexo A da Portaria 460:2021",null,null,"Escolher um item."]
[null,"5.1f",null,"Vedação","Item 2.4 do Anexo A da Portaria 460:2021",null,null,"Escolher um item."]
[null,"5.2a",null,"Medição do orifício de saída","Item 2.5 do Anexo A da Portaria 460:2021",null,null,"Escolher um item."]
[null,"5.2b",null,"Tampas","Item 2.1.2 do Anexo A da Portaria 460:2021",null,null,"Escolher um item."]

{"sheet":"REPASSE ","index":3,"n_rows":29,"n_cols":3,"rows_kept":29,"cut":false,"hidden":true,"merged":[[28,1,32,1],[16,2,16,4],[18,2,18,4],[20,2,20,4],[28,2,32,4],[8,2,8,4],[9,2,9,4],[10,2,10,4],[22,2,22,4],[1,1,1,4],[3,1,3,4],[5,2,5,4],[6,2,6,4],[7,2,7,4],[11,2,11,4],[12,2,12,4],[13,2,13,4],[14,2,14,4],[15,2,15,4]]}
[]
[null,"REPASSE"]
[]
[null,"DADOS DO EMBALADOR - (Somente em caso de repasse)"]
[]
[null,"RAZÃO SOCIAL:","-"]
[null,"NOME FANTASIA:","-"]
[null,"CNPJ:","-"]
[null,"ENDEREÇO:","-"]
[null,"BAIRRO:","-"]
[null,"CEP:","-"]
[null,"CIDADE:","-"]
[null,"ESTADO:","-"]
[null,"E-MAIL:","-"]
[null,"NOME DO CONTATO:","-"]
[null,"TELEFONE: (   )","-"]
[null,"DATA DA SOLICITAÇÃO:","-"]
[]
[null,"N° AUTORIZAÇÃO PARTICULAR DE REPASSE:","-"]
[]
[null,"N° AUTORIZAÇÃO DE USO DA MARCA:","-"]
[]
[null,"N° DE LICENÇA DE IMPORTAÇÃO:","-"]
[]
[null,"PROCEDÊNCIA: ","-"]
[null,{"$f":"IF(C25=\"IMPORTADO\",\"PAÍS DE ORIGEM:\",\"\")","v":""},"-"]
[null,{"$f":"IF(C25=\"IMPORTADO\",\"N° DA LICENÇA DE IMPORTAÇÃO\",\"-\")","v":"-"},"-"]
[]
[null,null,"______________________________________________________________________\nAssinatura (obrigatório)\n"]

{"sheet":"RÓTULOS E CÓDIGO DE BARRAS","index":4,"n_rows":47,"n_cols":5,"rows_kept":47,"cut":false,"hidden":false,"merged":[]}
[]
[null,null,"RÓTULOS","MARCA"," CÓDIGO DE BARRAS"]
[null,1,"-","-","-"]
[null,2,"-","-","-"]
[null,3,"-","-","-"]
[null,4,"-","-","-"]
[null,5,"-","-","-"]
[null,6,"-","-","-"]
[null,7,"-","-","-"]
[null,8,"-","-","-"]
[null,9,"-","-","-"]
[null,10,"-","-","-"]
[null,11,"-","-","-"]
[null,12,"-","-","-"]
[null,13,"-","-","-"]
[null,14,"-","-","-"]
[null,15,"-","-","-"]
[null,16,"-","-","-"]
[null,17,"-","-","-"]
[null,18,"-","-","-"]
[null,19,"-","-","-"]
[null,20,"-","-","-"]
[null,21,"-","-","-"]
[null,22,"-","-","-"]
[null,23,"-","-","-"]
[null,24,"-","-","-"]
[null,25,"-","-","-"]
[null,26,"-","-","-"]
[null,27,"-","-","-"]
[null,28,"-","-","-"]
[null,29,"-","-","-"]
[null,30,"-","-","-"]
[null,31,"-","-","-"]
[null,32,"-","-","-"]
[null,33,"-","-","-"]
[null,34,"-","-","-"]
[null,35,"-","-","-"]
[null,36,"-","-","-"]
[null,37,"-","-","-"]
[null,38,"-","-","-"]
[null,39,"-","-","-"]
[null,40,"-","-","-"]
[null,41,"-","-","-"]
[null,42,"-","-","-"]
[null,43,"-","-","-"]
[null,44,"-","-","-"]
[null,45,"-","-","-"]